[Event "*** Titled Tuesday Blitz"]
[Site "Chess.com"]
[Date "2020.04.21"]
[Round "4"]
[White "poliplaza"]
[Black "MikeSailer"]
[Result "1-0"]
[WhiteElo "2413"]
[BlackElo "2138"]
[TimeControl "180+1"]
[EndTime "10:40:21 PDT"]
[Termination "poliplaza won by checkmate"]

1. d4 {[%clk 0:02:59.3]} 1... d5 {[%clk 0:03:00.2]} 2. c4 {[%clk 0:02:59.4]}
2... Bf5 {[%clk 0:02:59.9]} 3. Nc3 {[%clk 0:02:56.9]} 3... e6 {[%clk 0:03:00.1]}
4. Nf3 {[%clk 0:02:57.2]} 4... Nc6 {[%clk 0:03:00.4]} 5. Bf4 {[%clk 0:02:55.2]}
5... Bb4 {[%clk 0:02:57.9]} 6. e3 {[%clk 0:02:52.7]} 6... Nf6 {[%clk 0:02:57.9]}
7. cxd5 {[%clk 0:02:52.1]} 7... Nxd5 {[%clk 0:02:56.4]} 8. Rc1 {[%clk
0:02:44.5]} 8... Nxf4 {[%clk 0:02:54.9]} 9. exf4 {[%clk 0:02:45.4]} 9... Qd6
{[%clk 0:02:45.8]} 10. Bb5 {[%clk 0:02:32.5]} 10... O-O {[%clk 0:02:28.1]} 11.
O-O {[%clk 0:02:19.6]} 11... Qxf4 {[%clk 0:02:17.9]} 12. Bxc6 {[%clk 0:02:18.1]}
12... bxc6 {[%clk 0:02:18]} 13. Qa4 {[%clk 0:02:16.5]} 13... Bxc3 {[%clk
0:02:17.3]} 14. Rxc3 {[%clk 0:02:13]} 14... Be4 {[%clk 0:02:17.5]} 15. Ne5
{[%clk 0:01:55.2]} 15... Rab8 {[%clk 0:02:03.8]} 16. Nd7 {[%clk 0:01:41.6]}
16... Rb5 {[%clk 0:01:40.2]} 17. Nxf8 {[%clk 0:01:36.5]} 17... Kxf8 {[%clk
0:01:39.4]} 18. d5 {[%clk 0:01:06.9]} 18... exd5 {[%clk 0:01:11.3]} 19. f3
{[%clk 0:00:55.8]} 19... Qd2 {[%clk 0:00:37.7]} 20. fxe4 {[%clk 0:00:29.7]}
20... Rxb2 {[%clk 0:00:37.5]} 21. Qa3+ {[%clk 0:00:24.9]} 21... Kg8 {[%clk
0:00:35.7]} 22. Rg3 {[%clk 0:00:24.1]} 22... h6 {[%clk 0:00:20.1]} 23. Qe7
{[%clk 0:00:20.1]} 23... Qd4+ {[%clk 0:00:16.7]} 24. Kh1 {[%clk 0:00:19.3]}
24... dxe4 {[%clk 0:00:14.9]} 25. Qxf7+ {[%clk 0:00:18.2]} 25... Kh8 {[%clk
0:00:14.7]} 26. Qf8+ {[%clk 0:00:15.1]} 26... Kh7 {[%clk 0:00:15]} 27. Qf5+
{[%clk 0:00:15.3]} 27... Kh8 {[%clk 0:00:15.5]} 28. h3 {[%clk 0:00:08.9]} 28...
Rxa2 {[%clk 0:00:09.6]} 29. Qf8+ {[%clk 0:00:06.5]} 29... Kh7 {[%clk 0:00:09.9]}
30. Qf5+ {[%clk 0:00:04.4]} 30... Kh8 {[%clk 0:00:09.4]} 31. Qf4 {[%clk
0:00:03.5]} 31... Ra1 {[%clk 0:00:08.6]} 32. Rxa1 {[%clk 0:00:02.9]} 32... Qxa1+
{[%clk 0:00:07.7]} 33. Kh2 {[%clk 0:00:03.6]} 33... Qd4 {[%clk 0:00:06.3]} 34.
Rg4 {[%clk 0:00:03.9]} 34... c5 {[%clk 0:00:04]} 35. Qxe4 {[%clk 0:00:04.2]}
35... Qd6+ {[%clk 0:00:04.6]} 36. Rg3 {[%clk 0:00:03.7]} 36... c6 {[%clk
0:00:04]} 37. Qe8+ {[%clk 0:00:03.9]} 37... Kh7 {[%clk 0:00:03.6]} 38. Qe4+
{[%clk 0:00:04.6]} 38... Kh8 {[%clk 0:00:03.3]} 39. Qg4 {[%clk 0:00:05.3]} 39...
Kh7 {[%clk 0:00:03.5]} 40. Qxg7# {[%clk 0:00:05.2]} 1-0

[Event "*** Titled Tuesday Blitz"]
[Site "Chess.com"]
[Date "2020.04.21"]
[Round "4"]
[White "GukeshDommaraju"]
[Black "marcodobrikov"]
[Result "1-0"]
[WhiteElo "2685"]
[BlackElo "2503"]
[TimeControl "180+1"]
[EndTime "10:40:24 PDT"]
[Termination "GukeshDommaraju won by checkmate"]

1. e4 {[%clk 0:03:00.9]} 1... c5 {[%clk 0:02:59.8]} 2. Nf3 {[%clk 0:03:01.1]}
2... d6 {[%clk 0:03:00]} 3. d4 {[%clk 0:03:00.9]} 3... cxd4 {[%clk 0:03:00.9]}
4. Nxd4 {[%clk 0:03:01.8]} 4... Nf6 {[%clk 0:03:01]} 5. Nc3 {[%clk 0:03:02.3]}
5... a6 {[%clk 0:03:01.5]} 6. g3 {[%clk 0:02:59.9]} 6... b5 {[%clk 0:02:55.6]}
7. a4 {[%clk 0:02:48.4]} 7... b4 {[%clk 0:02:55.4]} 8. Nd5 {[%clk 0:02:47.1]}
8... e5 {[%clk 0:02:32.3]} 9. Nf5 {[%clk 0:02:23.4]} 9... Be6 {[%clk 0:02:13.2]}
10. Nxf6+ {[%clk 0:02:03.8]} 10... gxf6 {[%clk 0:02:06.8]} 11. Ne3 {[%clk
0:01:53.4]} 11... Nd7 {[%clk 0:02:00.3]} 12. Bg2 {[%clk 0:01:50.4]} 12... a5
{[%clk 0:01:56.7]} 13. O-O {[%clk 0:01:44.5]} 13... Rc8 {[%clk 0:01:51.1]} 14.
f4 {[%clk 0:01:34.4]} 14... Nb6 {[%clk 0:01:49.1]} 15. b3 {[%clk 0:01:28.4]}
15... Qc7 {[%clk 0:01:36.4]} 16. f5 {[%clk 0:01:14.1]} 16... Bd7 {[%clk
0:01:36.3]} 17. Bd2 {[%clk 0:01:14.4]} 17... Qc5 {[%clk 0:01:35.4]} 18. Kh1
{[%clk 0:01:11.6]} 18... Bc6 {[%clk 0:01:35.5]} 19. Rc1 {[%clk 0:01:09]} 19...
d5 {[%clk 0:00:57.1]} 20. c3 {[%clk 0:00:57.1]} 20... bxc3 {[%clk 0:00:56.9]}
21. Rxc3 {[%clk 0:00:56.8]} 21... Qd4 {[%clk 0:00:52]} 22. Qc2 {[%clk
0:00:41.6]} 22... Bb7 {[%clk 0:00:33.5]} 23. Rxc8+ {[%clk 0:00:41]} 23... Bxc8
{[%clk 0:00:33.1]} 24. Nxd5 {[%clk 0:00:38.9]} 24... Nxd5 {[%clk 0:00:24.9]} 25.
Qxc8+ {[%clk 0:00:38.3]} 25... Ke7 {[%clk 0:00:25.5]} 26. Qb7+ {[%clk
0:00:34.1]} 26... Ke8 {[%clk 0:00:23.2]} 27. Qxd5 {[%clk 0:00:32.8]} 27... Qxd5
{[%clk 0:00:23.4]} 28. exd5 {[%clk 0:00:33.1]} 28... Bc5 {[%clk 0:00:23.6]} 29.
Bxa5 {[%clk 0:00:32.5]} 29... Kd7 {[%clk 0:00:24.5]} 30. b4 {[%clk 0:00:32]}
30... Bd4 {[%clk 0:00:24.4]} 31. Rc1 {[%clk 0:00:31.5]} 31... Ra8 {[%clk
0:00:24.3]} 32. Rc7+ {[%clk 0:00:30.7]} 32... Kd6 {[%clk 0:00:24.9]} 33. Rxf7
{[%clk 0:00:30.1]} 33... Rc8 {[%clk 0:00:24.6]} 34. Rxf6+ {[%clk 0:00:28.9]}
34... Ke7 {[%clk 0:00:25.1]} 35. Rc6 {[%clk 0:00:28.9]} 35... Rf8 {[%clk
0:00:25.3]} 36. d6+ {[%clk 0:00:28.2]} 36... Kd7 {[%clk 0:00:25.3]} 37. Be4
{[%clk 0:00:27]} 37... h5 {[%clk 0:00:24.4]} 38. b5 {[%clk 0:00:26.7]} 38... Ra8
{[%clk 0:00:24.3]} 39. Rc7+ {[%clk 0:00:26.5]} 39... Kxd6 {[%clk 0:00:24.6]} 40.
Bxa8 {[%clk 0:00:26.6]} 40... h4 {[%clk 0:00:25.1]} 41. gxh4 {[%clk 0:00:26.4]}
41... e4 {[%clk 0:00:25.5]} 42. Bxe4 {[%clk 0:00:25.4]} 42... Ke5 {[%clk
0:00:25.1]} 43. Re7+ {[%clk 0:00:24.1]} 43... Kf6 {[%clk 0:00:25]} 44. Re6+
{[%clk 0:00:23.6]} 44... Kf7 {[%clk 0:00:25.1]} 45. b6 {[%clk 0:00:24.1]} 45...
Bxb6 {[%clk 0:00:25.2]} 46. Bxb6 {[%clk 0:00:24]} 46... Kg7 {[%clk 0:00:26.1]}
47. a5 {[%clk 0:00:24.5]} 47... Kh7 {[%clk 0:00:26.4]} 48. a6 {[%clk 0:00:25]}
48... Kg7 {[%clk 0:00:27.3]} 49. a7 {[%clk 0:00:25.4]} 49... Kf7 {[%clk
0:00:28.2]} 50. a8=Q {[%clk 0:00:25.4]} 50... Kg7 {[%clk 0:00:29.1]} 51. Qb7+
{[%clk 0:00:25.7]} 51... Kf8 {[%clk 0:00:29.5]} 52. Bc5+ {[%clk 0:00:25.6]}
52... Kg8 {[%clk 0:00:29.7]} 53. Re8# {[%clk 0:00:26.5]} 1-0

[Event "*** Titled Tuesday Blitz"]
[Site "Chess.com"]
[Date "2020.04.21"]
[Round "4"]
[White "Keks2017"]
[Black "I_Hit_18K_on_BS"]
[Result "1-0"]
[WhiteElo "2398"]
[BlackElo "2100"]
[TimeControl "180+1"]
[EndTime "10:40:26 PDT"]
[Termination "Keks2017 won by checkmate"]

1. e4 {[%clk 0:03:00.9]} 1... c5 {[%clk 0:02:59.6]} 2. d3 {[%clk 0:03:00.6]}
2... Nc6 {[%clk 0:02:57.8]} 3. g3 {[%clk 0:03:00.4]} 3... g6 {[%clk 0:02:57.5]}
4. Bg2 {[%clk 0:03:00.6]} 4... Bg7 {[%clk 0:02:57.3]} 5. f4 {[%clk 0:03:00.6]}
5... d6 {[%clk 0:02:50.6]} 6. Nf3 {[%clk 0:03:00.2]} 6... e6 {[%clk 0:02:50.6]}
7. O-O {[%clk 0:03:00]} 7... Nge7 {[%clk 0:02:49.8]} 8. c3 {[%clk 0:02:59.9]}
8... O-O {[%clk 0:02:45.1]} 9. Be3 {[%clk 0:02:59.7]} 9... b6 {[%clk 0:02:39.5]}
10. Bf2 {[%clk 0:02:59.4]} 10... Bb7 {[%clk 0:02:29.7]} 11. Re1 {[%clk
0:02:59.1]} 11... d5 {[%clk 0:02:28.8]} 12. e5 {[%clk 0:02:58.4]} 12... Rb8
{[%clk 0:02:12.9]} 13. Nbd2 {[%clk 0:02:35.3]} 13... d4 {[%clk 0:02:02.9]} 14.
c4 {[%clk 0:02:34.8]} 14... Nb4 {[%clk 0:02:01.5]} 15. Nf1 {[%clk 0:02:33.3]}
15... a6 {[%clk 0:01:51]} 16. a3 {[%clk 0:02:33.1]} 16... Nbc6 {[%clk
0:01:50.1]} 17. g4 {[%clk 0:02:33.1]} 17... b5 {[%clk 0:01:34.4]} 18. b3 {[%clk
0:02:32.4]} 18... b4 {[%clk 0:01:28.4]} 19. a4 {[%clk 0:02:30.5]} 19... Na5
{[%clk 0:01:18.9]} 20. Ng3 {[%clk 0:02:28.3]} 20... Bc6 {[%clk 0:01:11]} 21. Ng5
{[%clk 0:02:23.9]} 21... h6 {[%clk 0:01:04.2]} 22. N5e4 {[%clk 0:02:21.6]} 22...
Bxe4 {[%clk 0:00:56.9]} 23. Nxe4 {[%clk 0:02:17.5]} 23... Kh8 {[%clk 0:00:49.4]}
24. Nxc5 {[%clk 0:02:15.5]} 24... Rb6 {[%clk 0:00:33.2]} 25. Rb1 {[%clk
0:02:13.9]} 25... Qc7 {[%clk 0:00:20]} 26. Ne4 {[%clk 0:02:13.4]} 26... Nec6
{[%clk 0:00:19.1]} 27. Qd2 {[%clk 0:02:08]} 27... Rd8 {[%clk 0:00:18.3]} 28. Bg3
{[%clk 0:02:07.2]} 28... Ne7 {[%clk 0:00:18]} 29. Qf2 {[%clk 0:02:01.4]} 29...
Nac6 {[%clk 0:00:17.4]} 30. Bh4 {[%clk 0:01:46]} 30... Rf8 {[%clk 0:00:13.9]}
31. Bf6 {[%clk 0:01:44.3]} 31... Nb8 {[%clk 0:00:05.9]} 32. Qh4 {[%clk
0:01:41.4]} 32... Kg8 {[%clk 0:00:03]} 33. Bxe7 {[%clk 0:01:35.4]} 33... Re8
{[%clk 0:00:01.8]} 34. Bf6 {[%clk 0:01:33.1]} 34... Nd7 {[%clk 0:00:02.1]} 35.
Bxg7 {[%clk 0:01:30.2]} 35... Kxg7 {[%clk 0:00:03]} 36. Nf6 {[%clk 0:01:29.1]}
36... Qd8 {[%clk 0:00:03.2]} 37. Nxe8+ {[%clk 0:01:27.9]} 37... Qxe8 {[%clk
0:00:04.1]} 38. f5 {[%clk 0:01:26.1]} 38... exf5 {[%clk 0:00:03.5]} 39. gxf5
{[%clk 0:01:25.4]} 39... Nxe5 {[%clk 0:00:04.4]} 40. Qe4 {[%clk 0:01:18.2]}
40... f6 {[%clk 0:00:03.4]} 41. fxg6 {[%clk 0:01:17.8]} 41... Qxg6 {[%clk
0:00:03.4]} 42. Qxg6+ {[%clk 0:01:17.3]} 42... Nxg6 {[%clk 0:00:04.3]} 43. Be4
{[%clk 0:01:14.1]} 43... Ne5 {[%clk 0:00:03.8]} 44. Kh1 {[%clk 0:01:14.1]} 44...
Kf7 {[%clk 0:00:03.6]} 45. Bf5 {[%clk 0:01:10.9]} 45... Rd6 {[%clk 0:00:02.4]}
46. Rf1 {[%clk 0:01:09.3]} 46... Rc6 {[%clk 0:00:02]} 47. Rbe1 {[%clk
0:01:08.8]} 47... Rd6 {[%clk 0:00:01.9]} 48. Rf4 {[%clk 0:01:03.8]} 48... Ke7
{[%clk 0:00:01.6]} 49. Rg1 {[%clk 0:01:00.2]} 49... a5 {[%clk 0:00:02]} 50. Rg7+
{[%clk 0:00:59.4]} 50... Kf8 {[%clk 0:00:02.4]} 51. Ra7 {[%clk 0:00:58.2]} 51...
Rd8 {[%clk 0:00:01.9]} 52. Be4 {[%clk 0:00:57.3]} 52... Re8 {[%clk 0:00:02]} 53.
Rxf6+ {[%clk 0:00:56.7]} 53... Kg8 {[%clk 0:00:02.5]} 54. Bd5+ {[%clk
0:00:53.9]} 54... Nf7 {[%clk 0:00:02.3]} 55. Bxf7+ {[%clk 0:00:51.9]} 55... Kh8
{[%clk 0:00:02.4]} 56. Bxe8 {[%clk 0:00:49.8]} 56... h5 {[%clk 0:00:02.9]} 57.
Rf8# {[%clk 0:00:49.2]} 1-0

[Event "*** Titled Tuesday Blitz"]
[Site "Chess.com"]
[Date "2020.04.21"]
[Round "4"]
[White "anon132639"]
[Black "JoachimMouhamad"]
[Result "0-1"]
[WhiteElo "2584"]
[BlackElo "2372"]
[TimeControl "180+1"]
[EndTime "10:40:27 PDT"]
[Termination "JoachimMouhamad won on time"]

1. d4 {[%clk 0:03:00.9]} 1... Nf6 {[%clk 0:02:57.6]} 2. c4 {[%clk 0:02:59.7]}
2... g6 {[%clk 0:02:57.4]} 3. Nf3 {[%clk 0:02:59.9]} 3... Bg7 {[%clk 0:02:57.1]}
4. Nc3 {[%clk 0:03:00.6]} 4... d5 {[%clk 0:02:56.8]} 5. e3 {[%clk 0:02:59.9]}
5... O-O {[%clk 0:02:55.4]} 6. cxd5 {[%clk 0:03:00.1]} 6... Nxd5 {[%clk
0:02:54.8]} 7. Bc4 {[%clk 0:03:00.8]} 7... Nb6 {[%clk 0:02:39.8]} 8. Be2 {[%clk
0:03:00.6]} 8... Nc6 {[%clk 0:02:33]} 9. O-O {[%clk 0:03:00.5]} 9... e5 {[%clk
0:02:30.3]} 10. d5 {[%clk 0:02:56.4]} 10... Na5 {[%clk 0:02:18.7]} 11. e4 {[%clk
0:02:51.2]} 11... Nac4 {[%clk 0:02:11.7]} 12. b3 {[%clk 0:02:48.3]} 12... Nd6
{[%clk 0:02:08.3]} 13. a4 {[%clk 0:02:48.9]} 13... a6 {[%clk 0:01:48.6]} 14. a5
{[%clk 0:02:48.8]} 14... Nd7 {[%clk 0:01:47.5]} 15. b4 {[%clk 0:02:44.3]} 15...
h6 {[%clk 0:01:28.7]} 16. Ba3 {[%clk 0:02:08.6]} 16... f5 {[%clk 0:01:26.3]} 17.
Nd2 {[%clk 0:02:09.1]} 17... Nf6 {[%clk 0:01:23.5]} 18. f3 {[%clk 0:02:04.8]}
18... Nh5 {[%clk 0:01:18]} 19. b5 {[%clk 0:02:01.9]} 19... Nf4 {[%clk
0:01:12.7]} 20. bxa6 {[%clk 0:02:01.9]} 20... bxa6 {[%clk 0:01:11.8]} 21. Nc4
{[%clk 0:02:01.4]} 21... Qg5 {[%clk 0:01:05.4]} 22. g3 {[%clk 0:01:41.6]} 22...
Rd8 {[%clk 0:00:50.8]} 23. Kh1 {[%clk 0:01:26.3]} 23... Nxe2 {[%clk 0:00:46.1]}
24. Qxe2 {[%clk 0:01:27.2]} 24... fxe4 {[%clk 0:00:44.6]} 25. Nxe4 {[%clk
0:01:20.8]} 25... Nxe4 {[%clk 0:00:42.9]} 26. fxe4 {[%clk 0:01:14.7]} 26... Bh3
{[%clk 0:00:40.9]} 27. Rf2 {[%clk 0:01:07.8]} 27... Bf8 {[%clk 0:00:39.3]} 28.
Bc1 {[%clk 0:00:56.7]} 28... Qe7 {[%clk 0:00:25.5]} 29. Be3 {[%clk 0:00:56.7]}
29... Qg7 {[%clk 0:00:20.9]} 30. Qd2 {[%clk 0:00:48.3]} 30... Kh7 {[%clk
0:00:19.8]} 31. Qc3 {[%clk 0:00:40.9]} 31... Bd6 {[%clk 0:00:19.3]} 32. Raa2
{[%clk 0:00:19.8]} 32... Rf8 {[%clk 0:00:18.4]} 33. Rab2 {[%clk 0:00:16.3]}
33... Rxf2 {[%clk 0:00:17.2]} 34. Rxf2 {[%clk 0:00:17.2]} 34... Rb8 {[%clk
0:00:16.1]} 35. Rb2 {[%clk 0:00:10.7]} 35... Rf8 {[%clk 0:00:16.4]} 36. Rf2
{[%clk 0:00:08.9]} 36... Rb8 {[%clk 0:00:15]} 37. Rb2 {[%clk 0:00:06.9]} 37...
Qf7 {[%clk 0:00:13.8]} 38. Rf2 {[%clk 0:00:01.1]} 38... Rb1+ {[%clk 0:00:12.9]}
39. Bc1 {[%clk 0:00:01.6]} 39... Qxf2 {[%clk 0:00:11.5]} 0-1

[Event "*** Titled Tuesday Blitz"]
[Site "Chess.com"]
[Date "2020.04.21"]
[Round "4"]
[White "JLRHei"]
[Black "Chessy222222"]
[Result "0-1"]
[WhiteElo "2269"]
[BlackElo "2102"]
[TimeControl "180+1"]
[EndTime "10:40:27 PDT"]
[Termination "Chessy222222 won by checkmate"]

1. d4 {[%clk 0:03:00.9]} 1... Nf6 {[%clk 0:02:59.6]} 2. c4 {[%clk 0:03:01.5]}
2... g6 {[%clk 0:02:59.6]} 3. Nf3 {[%clk 0:03:02]} 3... Bg7 {[%clk 0:02:59.8]}
4. g3 {[%clk 0:03:02.6]} 4... O-O {[%clk 0:02:59.7]} 5. Bg2 {[%clk 0:03:03.2]}
5... d6 {[%clk 0:03:00]} 6. O-O {[%clk 0:03:03.7]} 6... Nc6 {[%clk 0:02:58.9]}
7. Nc3 {[%clk 0:03:04.2]} 7... a6 {[%clk 0:02:58.8]} 8. Bf4 {[%clk 0:03:03.5]}
8... Rb8 {[%clk 0:02:53.2]} 9. Rc1 {[%clk 0:03:03.5]} 9... b5 {[%clk 0:02:44.4]}
10. Nd5 {[%clk 0:03:02.9]} 10... Bd7 {[%clk 0:02:18.9]} 11. cxb5 {[%clk
0:02:22.9]} 11... axb5 {[%clk 0:02:19.8]} 12. Nxc7 {[%clk 0:02:16.6]} 12... Qxc7
{[%clk 0:02:16.7]} 13. d5 {[%clk 0:02:17]} 13... Qb7 {[%clk 0:02:05.8]} 14. dxc6
{[%clk 0:01:58.5]} 14... Bxc6 {[%clk 0:02:06.7]} 15. Rc2 {[%clk 0:01:24.5]}
15... Rfc8 {[%clk 0:02:01.3]} 16. Qd2 {[%clk 0:01:17.4]} 16... Ne4 {[%clk
0:01:47.1]} 17. Qe3 {[%clk 0:01:17.1]} 17... Bd5 {[%clk 0:01:43]} 18. Rxc8+
{[%clk 0:01:13.7]} 18... Rxc8 {[%clk 0:01:43.9]} 19. b3 {[%clk 0:01:13.6]} 19...
Rc3 {[%clk 0:01:41.2]} 20. Rc1 {[%clk 0:00:43.9]} 20... Rxe3 {[%clk 0:01:39.7]}
21. Bxe3 {[%clk 0:00:44.8]} 21... h5 {[%clk 0:01:24.1]} 22. h4 {[%clk
0:00:43.5]} 22... Bf6 {[%clk 0:01:08.6]} 23. Kf1 {[%clk 0:00:40.1]} 23... Kg7
{[%clk 0:01:03]} 24. Bh3 {[%clk 0:00:36.2]} 24... Nc5 {[%clk 0:00:49.8]} 25. Nd4
{[%clk 0:00:32]} 25... Ne6 {[%clk 0:00:45.3]} 26. Nf3 {[%clk 0:00:25.7]} 26...
Bxf3 {[%clk 0:00:43.8]} 27. exf3 {[%clk 0:00:26.6]} 27... Qxf3 {[%clk
0:00:44.1]} 28. Bg2 {[%clk 0:00:27.2]} 28... Qg4 {[%clk 0:00:43.3]} 29. a4
{[%clk 0:00:24]} 29... bxa4 {[%clk 0:00:42.5]} 30. bxa4 {[%clk 0:00:24.9]} 30...
Bd4 {[%clk 0:00:37.4]} 31. Bxd4+ {[%clk 0:00:20.3]} 31... Qxd4 {[%clk 0:00:37]}
32. Bc6 {[%clk 0:00:18.1]} 32... Nc5 {[%clk 0:00:35.9]} 33. a5 {[%clk
0:00:17.2]} 33... Qb2 {[%clk 0:00:28.4]} 34. Re1 {[%clk 0:00:15.6]} 34... Nd3
{[%clk 0:00:22.1]} 35. Re2 {[%clk 0:00:15.9]} 35... Qa1+ {[%clk 0:00:21.1]} 36.
Kg2 {[%clk 0:00:16.3]} 36... Qxa5 {[%clk 0:00:21.3]} 37. Rxe7 {[%clk 0:00:15.8]}
37... Ne5 {[%clk 0:00:18.9]} 38. Bf3 {[%clk 0:00:14.6]} 38... Nxf3 {[%clk
0:00:18.2]} 39. Kxf3 {[%clk 0:00:14.4]} 39... Qd5+ {[%clk 0:00:18.8]} 40. Re4
{[%clk 0:00:14.6]} 40... f5 {[%clk 0:00:18.4]} 41. Kg2 {[%clk 0:00:15.5]} 41...
Qxe4+ {[%clk 0:00:18.1]} 42. Kg1 {[%clk 0:00:16.4]} 42... d5 {[%clk 0:00:18.5]}
43. Kf1 {[%clk 0:00:16.4]} 43... d4 {[%clk 0:00:19.4]} 44. g4 {[%clk 0:00:15.5]}
44... d3 {[%clk 0:00:20.3]} 45. g5 {[%clk 0:00:15.9]} 45... d2 {[%clk
0:00:19.8]} 46. f3 {[%clk 0:00:15.9]} 46... Qxf3+ {[%clk 0:00:19.1]} 47. Kg1
{[%clk 0:00:15.6]} 47... d1=Q+ {[%clk 0:00:19]} 48. Kh2 {[%clk 0:00:13.3]} 48...
Qde2+ {[%clk 0:00:19.9]} 49. Kg1 {[%clk 0:00:11.6]} 49... Qff1# {[%clk
0:00:20.8]} 0-1

[Event "*** Titled Tuesday Blitz"]
[Site "Chess.com"]
[Date "2020.04.21"]
[Round "4"]
[White "Stormeman100100"]
[Black "leoduarte"]
[Result "1-0"]
[WhiteElo "2450"]
[BlackElo "2244"]
[TimeControl "180+1"]
[EndTime "10:40:29 PDT"]
[Termination "Stormeman100100 won on time"]

1. e4 {[%clk 0:03:00.9]} 1... c5 {[%clk 0:02:59.2]} 2. Nf3 {[%clk 0:03:00.3]}
2... e6 {[%clk 0:02:59.7]} 3. d4 {[%clk 0:02:57.1]} 3... cxd4 {[%clk 0:03:00.6]}
4. Nxd4 {[%clk 0:02:57.9]} 4... Nc6 {[%clk 0:03:00.8]} 5. Nc3 {[%clk 0:02:56.4]}
5... Qc7 {[%clk 0:03:00.8]} 6. Be3 {[%clk 0:02:52.6]} 6... a6 {[%clk 0:03:00.5]}
7. Qf3 {[%clk 0:02:52.3]} 7... b5 {[%clk 0:02:56.2]} 8. Qg3 {[%clk 0:02:27.1]}
8... Qxg3 {[%clk 0:02:53.9]} 9. hxg3 {[%clk 0:02:25.6]} 9... Bb7 {[%clk
0:02:54.2]} 10. f3 {[%clk 0:02:22.1]} 10... Nf6 {[%clk 0:02:48.6]} 11. O-O-O
{[%clk 0:02:20]} 11... Bb4 {[%clk 0:02:36]} 12. Nb3 {[%clk 0:02:13.7]} 12... d6
{[%clk 0:02:16.3]} 13. a3 {[%clk 0:02:02]} 13... Bxc3 {[%clk 0:02:15.7]} 14.
bxc3 {[%clk 0:02:02.9]} 14... Ke7 {[%clk 0:02:13.2]} 15. c4 {[%clk 0:01:51]}
15... bxc4 {[%clk 0:02:07.4]} 16. Bxc4 {[%clk 0:01:49]} 16... Rac8 {[%clk
0:02:06.9]} 17. Be2 {[%clk 0:01:45]} 17... h6 {[%clk 0:01:20.6]} 18. Kd2 {[%clk
0:01:29.8]} 18... Nd7 {[%clk 0:01:19.3]} 19. Rb1 {[%clk 0:01:29.6]} 19... Ra8
{[%clk 0:01:05.4]} 20. Nd4 {[%clk 0:01:23.1]} 20... Nxd4 {[%clk 0:00:57.3]} 21.
Bxd4 {[%clk 0:01:21.6]} 21... e5 {[%clk 0:00:49.1]} 22. Be3 {[%clk 0:00:58.8]}
22... Bc6 {[%clk 0:00:46.4]} 23. Rb2 {[%clk 0:00:55.8]} 23... Rhc8 {[%clk
0:00:16.7]} 24. Rhb1 {[%clk 0:00:52]} 24... Nc5 {[%clk 0:00:16.2]} 25. Bxc5
{[%clk 0:00:43.8]} 25... dxc5 {[%clk 0:00:15.8]} 26. Bc4 {[%clk 0:00:43.7]}
26... f6 {[%clk 0:00:14.9]} 27. Ke3 {[%clk 0:00:37.9]} 27... Rc7 {[%clk
0:00:14.4]} 28. Rb6 {[%clk 0:00:32.5]} 28... a5 {[%clk 0:00:14.2]} 29. Rxc6
{[%clk 0:00:29.1]} 29... Rxc6 {[%clk 0:00:14]} 30. Bd5 {[%clk 0:00:28.9]} 30...
Kd6 {[%clk 0:00:14.2]} 31. Rb7 {[%clk 0:00:21]} 31... Rcc8 {[%clk 0:00:13.4]}
32. Rxg7 {[%clk 0:00:19.4]} 32... Rab8 {[%clk 0:00:13.4]} 33. Rf7 {[%clk
0:00:14.8]} 33... Rf8 {[%clk 0:00:13]} 34. Ra7 {[%clk 0:00:14.6]} 34... Rb2
{[%clk 0:00:12.3]} 35. c4 {[%clk 0:00:11.8]} 35... Rxg2 {[%clk 0:00:10.7]} 36.
g4 {[%clk 0:00:11.6]} 36... Rb2 {[%clk 0:00:04.1]} 37. Rxa5 {[%clk 0:00:11.5]}
37... Rb6 {[%clk 0:00:04.2]} 38. Ra7 {[%clk 0:00:11.1]} 38... Rbb8 {[%clk
0:00:03.7]} 39. a4 {[%clk 0:00:11.2]} 39... Rb3+ {[%clk 0:00:01.6]} 40. Kf2
{[%clk 0:00:10.5]} 1-0

[Event "*** Titled Tuesday Blitz"]
[Site "Chess.com"]
[Date "2020.04.21"]
[Round "4"]
[White "lifeissofun"]
[Black "MathiasWomacka"]
[Result "0-1"]
[WhiteElo "2267"]
[BlackElo "2457"]
[TimeControl "180+1"]
[EndTime "10:40:30 PDT"]
[Termination "MathiasWomacka won by resignation"]

1. e4 {[%clk 0:03:00.9]} 1... c5 {[%clk 0:02:54]} 2. Nf3 {[%clk 0:03:01.2]} 2...
d6 {[%clk 0:02:53.4]} 3. d4 {[%clk 0:03:02.1]} 3... cxd4 {[%clk 0:02:53.9]} 4.
Nxd4 {[%clk 0:03:02.9]} 4... Nf6 {[%clk 0:02:54.4]} 5. Nc3 {[%clk 0:03:03.5]}
5... a6 {[%clk 0:02:54.7]} 6. h3 {[%clk 0:03:03.8]} 6... e6 {[%clk 0:02:54.5]}
7. g4 {[%clk 0:03:03.4]} 7... b5 {[%clk 0:02:54.9]} 8. Bg2 {[%clk 0:03:02.7]}
8... Bb7 {[%clk 0:02:55]} 9. O-O {[%clk 0:03:02.4]} 9... Nfd7 {[%clk 0:02:55]}
10. Be3 {[%clk 0:02:59.2]} 10... Nc6 {[%clk 0:02:53.7]} 11. f4 {[%clk
0:02:54.5]} 11... Be7 {[%clk 0:02:50]} 12. g5 {[%clk 0:02:48]} 12... Rc8 {[%clk
0:02:48.1]} 13. Qg4 {[%clk 0:02:40.8]} 13... b4 {[%clk 0:02:42.4]} 14. Nce2
{[%clk 0:02:34.7]} 14... Nxd4 {[%clk 0:02:38.7]} 15. Nxd4 {[%clk 0:02:35.6]}
15... Nc5 {[%clk 0:02:32.4]} 16. f5 {[%clk 0:02:30.9]} 16... e5 {[%clk
0:02:30.1]} 17. Ne2 {[%clk 0:02:29.3]} 17... Na4 {[%clk 0:02:25.1]} 18. f6
{[%clk 0:02:22]} 18... gxf6 {[%clk 0:02:11.2]} 19. gxf6 {[%clk 0:02:21.8]} 19...
Bf8 {[%clk 0:02:10.6]} 20. b3 {[%clk 0:02:09]} 20... Nc3 {[%clk 0:02:04.6]} 21.
Nxc3 {[%clk 0:02:07.8]} 21... Rxc3 {[%clk 0:02:05.5]} 22. Bd2 {[%clk 0:02:00.2]}
22... Rxc2 {[%clk 0:02:04.7]} 23. Be3 {[%clk 0:01:58.9]} 23... Qc8 {[%clk
0:01:53.6]} 24. Qd1 {[%clk 0:01:53.2]} 24... Rg8 {[%clk 0:01:51]} 25. Rf2 {[%clk
0:01:32.8]} 25... Rxf2 {[%clk 0:01:50.4]} 26. Kxf2 {[%clk 0:01:31.3]} 26...
Rxg2+ {[%clk 0:01:27.6]} 27. Kxg2 {[%clk 0:01:30]} 27... Bxe4+ {[%clk
0:01:28.1]} 28. Kh2 {[%clk 0:01:29.4]} 28... Qf5 {[%clk 0:01:27.7]} 29. Rc1
{[%clk 0:01:23.7]} 29... d5 {[%clk 0:01:16.5]} 30. Qg4 {[%clk 0:01:07.6]} 30...
Qxg4 {[%clk 0:01:05.5]} 31. hxg4 {[%clk 0:01:08.5]} 31... Kd7 {[%clk 0:01:05.8]}
32. Bb6 {[%clk 0:00:58.5]} 32... d4 {[%clk 0:00:59.7]} 33. Re1 {[%clk 0:00:55]}
33... Bc2 {[%clk 0:00:54.3]} 34. Kg2 {[%clk 0:00:41.9]} 34... d3 {[%clk
0:00:48]} 35. Rxe5 {[%clk 0:00:40.2]} 35... Bh6 {[%clk 0:00:40.6]} 36. g5 {[%clk
0:00:26.8]} 36... Kd6 {[%clk 0:00:29.3]} 37. Re8 {[%clk 0:00:22.7]} 37... Bxg5
{[%clk 0:00:27.6]} 38. Rd8+ {[%clk 0:00:20.3]} 38... Kc6 {[%clk 0:00:27.3]} 39.
Bd4 {[%clk 0:00:02.7]} 39... d2 {[%clk 0:00:26]} 40. Rc8+ {[%clk 0:00:03.6]}
40... Kd5 {[%clk 0:00:24.8]} 41. Rxc2 {[%clk 0:00:04.5]} 41... d1=Q {[%clk
0:00:24.7]} 42. Rc5+ {[%clk 0:00:01.9]} 42... Kxd4 {[%clk 0:00:23.5]} 43. Rxg5
{[%clk 0:00:02.8]} 43... Qd2+ {[%clk 0:00:23.3]} 44. Kg3 {[%clk 0:00:03.5]}
44... Qxg5+ {[%clk 0:00:22.9]} 45. Kf3 {[%clk 0:00:04.4]} 0-1